fUSD/lending_fUSD_20250120
["ID","MTS","AMOUNT","RATE_DAILY","PERIOD"]
[349651962,1737357950101,-175.42598061,0.000153,2]
[349651963,1737357962906,166.12021275,0.0001,2]
[349651966,1737358048087,-167.82,0.00014777,2]
[349651967,1737358048109,-2878.87920704,0.00014888,2]
[349651968,1737358048133,-1096.51328697,0.000149,2]
[349651969,1737358048154,-3799.1081021,0.00016,2]
[349651977,1737358083204,41695.57094408,0.0001,2]
[349651985,1737358117564,1022.46646406,0.00023,120]
[349651991,1737358150101,-1757.77537063,0.0001439,2]
[349651992,1737358150126,-5844.51611474,0.00016,2]
[349651993,1737358150148,-1772.6230269,0.00017763,2]
[349651994,1737358150169,-163.58846744,0.00017963,2]
[349651995,1737358150195,-300.0,0.00017999,2]
[349651996,1737358150220,-51842.79779663,0.00018,10]
[349651997,1737358150242,-3756.0,0.00018,5]
[349651998,1737358150265,-336.56490737,0.00018063,2]
[349651999,1737358150288,-23723.21723629,0.00018102,2]
[349652000,1737358152086,-176.78276371,0.00018102,2]
[349652001,1737358152107,-519.84757797,0.00018167,2]
[349652002,1737358152128,-11244.66,0.00018267,7]
[349652003,1737358152150,-11244.66,0.00018267,7]
[349652004,1737358152170,-11244.66,0.00018267,7]
[349652005,1737358152193,-11244.66,0.00018267,7]
[349652006,1737358152213,-1446.52,0.00018327,2]
[349652007,1737358152234,-6351.93807832,0.00018541,7]
[349652008,1737358152266,-4892.72192168,0.00018541,7]
[349652009,1737358152286,-11244.66,0.00018541,7]
[349652010,1737358152308,-934.1,0.00018561,2]
[349652011,1737358152328,-717.97,0.00018582,2]
[349652012,1737358152350,-1457.27936452,0.00018781,2]
[349652013,1737358152371,-11244.66,0.00018815,7]
[349652014,1737358152391,-11244.66,0.00018815,7]
[349652015,1737358152414,-205.00616391,0.000189,2]
[349652016,1737358152435,-10768.73223451,0.00019,2]
[349652017,1737358152461,-11244.66,0.00019089,7]
[349652018,1737358152481,-11244.66,0.00019089,7]
[349652019,1737358157685,1000.0,0.00023,120]
[349652020,1737358161680,5415.7703609,0.00018067,2]
[349652021,1737358166690,5415.77036088,0.00018117,2]
[349652022,1737358171686,5415.77036088,0.00018167,2]
[349652023,1737358174218,250.0,0.00019014,2]
[349652038,1737358232119,-300.0,0.00019362,2]
[349652039,1737358232130,-8638.02620344,0.00019363,7]
[349652040,1737358232142,-2606.63379656,0.00019363,7]
[349652041,1737358232151,-11244.66,0.00019363,7]
[349652042,1737358232160,-358.56358923,0.000194,2]
[349652043,1737358232170,-156.45995296,0.000194,2]
[349652044,1737358232179,-519.84757797,0.00019411,2]
[349652045,1737358232188,-180.61,0.00019448,2]
[349652046,1737358232198,-250.0,0.00019448,2]
[349652047,1737358232212,-1500.0,0.00019462,2]
[349652048,1737358232221,-182.12,0.00019464,2]
[349652049,1737358232231,-153.15,0.0001949,2]
[349652050,1737358232240,-153.15,0.0001949,2]
[349652051,1737358232254,-153.15,0.0001949,2]
[349652052,1737358232264,-1139.0,0.00019498,2]
[349652053,1737358232273,-997.21,0.00019498,2]
[349652054,1737358232284,-841.83,0.00019498,2]
[349652055,1737358232294,-1568.84,0.00019498,2]
[349652056,1737358232303,-686.33,0.00019498,2]
[349652057,1737358232314,-588.46,0.00019498,2]
[349652058,1737358232323,-1280.7,0.00019498,2]
[349652059,1737358232333,-2967.14,0.00019498,2]
[349652060,1737358232342,-1748.92,0.00019498,2]
[349652061,1737358232351,-500.0,0.00019498,2]
[349652062,1737358232361,-742.97,0.00019498,2]
[349652063,1737358232370,-500.0,0.00019498,2]
[349652064,1737358232379,-500.0,0.00019498,2]
[349652065,1737358232389,-500.0,0.00019498,2]
[349652066,1737358232398,-647.97,0.00019498,2]
[349652067,1737358232408,-204.28245583,0.00019498,2]
[349652068,1737358232418,-1188.05,0.00019498,2]
[349652069,1737358232429,-500.0,0.00019498,2]
[349652070,1737358232440,-500.0,0.00019498,2]
[349652071,1737358232450,-500.0,0.00019498,2]
[349652072,1737358232460,-500.0,0.00019498,2]
[349652073,1737358232468,-1976.19,0.00019499,2]
[349652074,1737358232478,-842.54,0.00019499,2]
[349652075,1737358232487,-500.0,0.00019499,2]
[349652076,1737358232501,-577.26,0.00019499,2]
[349652077,1737358232511,-3973.63,0.00019499,2]
[349652078,1737358232520,-1011.74,0.00019499,2]
[349652079,1737358232529,-2791.81,0.00019499,2]
[349652080,1737358232540,-1475.060812,0.00019499,2]
[349652081,1737358232549,-585.35,0.00019499,2]
[349652082,1737358232558,-1408.83,0.00019499,2]
[349652083,1737358232567,-155.929331,0.00019499,2]
[349652084,1737358232577,-500.0,0.00019499,2]
[349652085,1737358232586,-500.0,0.00019499,2]
[349652086,1737358232595,-157.726337,0.00019499,2]
[349652087,1737358232604,-1687.86,0.00019499,2]
[349652088,1737358232615,-1944.56,0.00019499,2]
[349652089,1737358232625,-500.0,0.00019499,2]
[349652090,1737358232635,-500.0,0.00019499,2]
[349652091,1737358232645,-566.66661783,0.00019499,2]
[349652092,1737358232656,-61.85151517,0.00019499,2]
[349652093,1737358232666,-500.0,0.00019499,2]
[349652094,1737358232675,-500.0,0.00019499,2]
[349652095,1737358232685,-531.13,0.00019499,2]
[349652096,1737358232694,-1493.9,0.00019499,2]
[349652097,1737358232703,-1434.48,0.00019499,2]
[349652098,1737358232713,-500.0,0.00019499,2]
[349652099,1737358232726,-540.03,0.00019499,2]
[349652100,1737358232736,-1599.15,0.00019499,2]
[349652101,1737358232748,-749.61,0.00019499,2]
[349652102,1737358232761,-1124.91,0.00019499,2]
[349652103,1737358232771,-1653.98,0.00019499,2]
[349652104,1737358232780,-500.0,0.00019499,2]
[349652105,1737358232790,-500.0,0.00019499,2]
[349652106,1737358232799,-2188.93,0.00019499,2]
[349652107,1737358232809,-500.0,0.00019499,2]
[349652108,1737358232818,-1655.06,0.00019499,2]
[349652109,1737358232828,-666.16,0.00019499,2]
[349652110,1737358232837,-500.0,0.00019499,2]
[349652111,1737358232846,-3129.34,0.00019499,2]
[349652112,1737358232855,-1733.0,0.00019499,2]
[349652113,1737358232865,-1812.09,0.00019499,2]
[349652114,1737358232874,-3247.89,0.00019499,2]
[349652115,1737358232883,-3759.08,0.00019499,2]
[349652116,1737358232892,-500.0,0.00019499,2]
[349652117,1737358232901,-500.0,0.00019499,2]
[349652118,1737358232910,-978.53,0.00019499,2]
[349652119,1737358232919,-500.0,0.00019499,2]
[349652120,1737358232930,-2232.69,0.00019499,2]
[349652121,1737358232940,-4573.56,0.00019499,2]
[349652122,1737358232951,-1490.55,0.00019499,2]
[349652123,1737358232962,-1877.94,0.00019499,2]
[349652124,1737358232971,-500.0,0.00019499,2]
[349652125,1737358232980,-747.39,0.00019499,2]
[349652126,1737358233209,-2267.92,0.00019499,2]
[349652127,1737358233221,-268959.4066177,0.000195,15]
[349652128,1737358233235,-355752.65366749,0.000195,15]
[349652129,1737358233255,-871.668525,0.000195,15]
[349652130,1737358233281,-12233.10585638,0.000195,15]
[349652131,1737358233300,-217178.6444494,0.000195,15]
[349652132,1737358233313,-4332.2,0.000195,15]
[349652133,1737358233326,-347.643165,0.000195,15]
[349652136,1737358233367,-65547.60613052,0.000195,15]
[349652264,1737358237907,-400.0,0.00019498,2]
[349652265,1737358237916,-226.508,0.00019498,2]
[349652266,1737358238161,-273.492,0.00019498,2]
[349652267,1737358238171,-524.03,0.00019498,2]
[349652268,1737358238180,-500.0,0.00019498,2]
[349652269,1737358238190,-500.0,0.00019498,2]
[349652270,1737358238199,-69.6144248,0.00019499,2]
[349652271,1737358238211,-122.8794408,0.00019499,2]
[349652272,1737358238220,-523020.24416272,0.000195,15]
[349652273,1737358238231,-94186.4582036,0.000195,15]
[349652274,1737358238242,-465469.9683495,0.000195,15]
[349652275,1737358238256,-437.449056,0.000195,15]
[349652276,1737358238267,-534.82997,0.000195,15]
[349652277,1737358238278,-783354.67247642,0.000195,15]
[349652278,1737358238289,-1056094.35937027,0.000195,15]
[349652279,1737358238299,-185.84287233,0.000195,2]
[349652280,1737358238308,-1585.52,0.000195,2]
[349652281,1737358238317,-358.56358917,0.00019594,2]
[349652282,1737358238327,-1943.07323485,0.0001961,2]
[349652283,1737358238336,-1000.0,0.00019614,2]
[349652284,1737358238346,-11244.66,0.00019637,7]
[349652285,1737358238355,-11244.66,0.00019637,7]
[349652286,1737358238365,-1179.24,0.00019735,2]
[349652287,1737358238374,-1139.0,0.00019772,2]
[349652288,1737358238383,-997.21,0.00019772,2]
[349652289,1737358238393,-841.83,0.00019772,2]
[349652290,1737358238402,-1568.84,0.00019772,2]
[349652291,1737358238413,-686.33,0.00019772,2]
[349652292,1737358238422,-588.46,0.00019772,2]
[349652293,1737358238432,-1280.7,0.00019772,2]
[349652294,1737358238441,-2967.14,0.00019772,2]
[349652295,1737358238450,-1748.92,0.00019772,2]
[349652296,1737358238461,-500.0,0.00019772,2]
[349652297,1737358238471,-742.97,0.00019772,2]
[349652298,1737358238480,-500.0,0.00019772,2]
[349652299,1737358238489,-500.0,0.00019772,2]
[349652300,1737358238501,-647.97,0.00019772,2]
[349652301,1737358238510,-1188.05,0.00019772,2]
[349652302,1737358238519,-500.0,0.00019772,2]
[349652304,1737358238528,-489.18958633,0.00019772,2]
[349652306,1737358238538,-524.03,0.00019772,2]
[349652307,1737358238547,-842.54,0.00019773,2]
[349652309,1737358238556,-500.0,0.00019773,2]
[349652311,1737358238565,-577.26,0.00019773,2]
[349652313,1737358238574,-3973.63,0.00019773,2]
[349652315,1737358238583,-1011.74,0.00019773,2]
[349652317,1737358238592,-2791.81,0.00019773,2]
[349652319,1737358238601,-1475.060812,0.00019773,2]
[349652321,1737358238610,-585.35,0.00019773,2]
[349652323,1737358238618,-1408.83,0.00019773,2]
[349652325,1737358238627,-500.0,0.00019773,2]
[349652327,1737358238636,-1687.86,0.00019773,2]
[349652329,1737358238645,-1944.56,0.00019773,2]
[349652331,1737358238655,-405.46952044,0.00019773,2]
[349652333,1737358238664,-500.0,0.00019773,2]
[349652335,1737358238673,-628.518133,0.00019773,2]
[349652337,1737358238682,-531.13,0.00019773,2]
[349652338,1737358238692,-1493.9,0.00019773,2]
[349652339,1737358238701,-1434.48,0.00019773,2]
[349652340,1737358238711,-500.0,0.00019773,2]
[349652341,1737358238721,-540.03,0.00019773,2]
[349652342,1737358238730,-1599.15,0.00019773,2]
[349652343,1737358238739,-749.61,0.00019773,2]
[349652344,1737358238750,-1124.91,0.00019773,2]
[349652345,1737358238759,-500.0,0.00019773,2]
[349652346,1737358238770,-1653.98,0.00019773,2]
[349652347,1737358238779,-500.0,0.00019773,2]
[349652348,1737358238789,-2188.93,0.00019773,2]
[349652349,1737358238798,-500.0,0.00019773,2]
[349652350,1737358238808,-1655.06,0.00019773,2]
[349652351,1737358238819,-666.16,0.00019773,2]
[349652352,1737358238830,-500.0,0.00019773,2]
[349652353,1737358238840,-3129.34,0.00019773,2]
[349652354,1737358238849,-1733.0,0.00019773,2]
[349652355,1737358238859,-1812.09,0.00019773,2]
[349652356,1737358238869,-3247.89,0.00019773,2]
[349652357,1737358238878,-3759.08,0.00019773,2]
[349652358,1737358238887,-500.0,0.00019773,2]
[349652359,1737358238896,-500.0,0.00019773,2]
[349652360,1737358238905,-978.53,0.00019773,2]
[349652361,1737358238914,-500.0,0.00019773,2]
[349652362,1737358238923,-2232.69,0.00019773,2]
[349652363,1737358238932,-4573.56,0.00019773,2]
[349652364,1737358238941,-1490.55,0.00019773,2]
[349652365,1737358238950,-1877.94,0.00019773,2]
[349652366,1737358238959,-747.39,0.00019773,2]
[349652367,1737358238968,-2267.92,0.00019773,2]
[349652368,1737358238978,-358.56358917,0.00019788,2]
[349652369,1737358238987,-425.40302703,0.000198,2]
[349652370,1737358238996,-16924.86739304,0.000199,7]
[349652371,1737358239009,-205.00616391,0.000199,2]
[349652372,1737358239018,-11244.66,0.00019911,7]
[349652373,1737358239027,-11244.66,0.00019911,7]
[349652374,1737358239038,-484.64,0.00019949,30]
[349652375,1737358239048,-358.56358917,0.00019982,2]
[349652376,1737358239058,-41553.90091137,0.0002,2]
[349652377,1737358239067,-1000.0,0.0002,2]
[349652378,1737358239076,-250.0,0.00020041,2]
[349652379,1737358239086,-1139.0,0.00020046,2]
[349652380,1737358239096,-997.21,0.00020046,2]
[349652381,1737358239107,-841.83,0.00020046,2]
[349652382,1737358239116,-1568.84,0.00020046,2]
[349652383,1737358239128,-686.33,0.00020046,2]
[349652384,1737358239138,-588.46,0.00020046,2]
[349652385,1737358239147,-1280.7,0.00020046,2]
[349652386,1737358239157,-2967.14,0.00020046,2]
[349652387,1737358239167,-1748.92,0.00020046,2]
[349652388,1737358239176,-742.97,0.00020046,2]
[349652389,1737358239185,-357.574955,0.00020046,2]
[349652390,1737358239194,-500.0,0.00020046,2]
[349652391,1737358239203,-647.97,0.00020046,2]
[349652392,1737358239214,-1188.05,0.00020046,2]
[349652393,1737358239223,-500.0,0.00020046,2]
[349652394,1737358239232,-524.03,0.00020046,2]
[349652395,1737358239242,-842.54,0.00020047,2]
[349652396,1737358239253,-500.0,0.00020047,2]
[349652397,1737358239262,-577.26,0.00020047,2]
[349652398,1737358239271,-3973.63,0.00020047,2]
[349652399,1737358239280,-1011.74,0.00020047,2]
[349652400,1737358239289,-2791.81,0.00020047,2]
[349652401,1737358239298,-1475.060812,0.00020047,2]
[349652402,1737358239307,-585.35,0.00020047,2]
[349652403,1737358239317,-1408.83,0.00020047,2]
[349652404,1737358239326,-500.0,0.00020047,2]
[349652405,1737358239336,-1687.86,0.00020047,2]
[349652406,1737358239345,-1944.56,0.00020047,2]
[349652407,1737358239354,-500.0,0.00020047,2]
[349652408,1737358239363,-628.518133,0.00020047,2]
[349652409,1737358239373,-531.13,0.00020047,2]
[349652410,1737358239382,-1493.9,0.00020047,2]
[349652411,1737358239391,-1434.48,0.00020047,2]
[349652412,1737358239401,-500.0,0.00020047,2]
[349652413,1737358239410,-540.03,0.00020047,2]
[349652414,1737358239419,-1599.15,0.00020047,2]
[349652415,1737358239428,-749.61,0.00020047,2]
[349652416,1737358239438,-1124.91,0.00020047,2]
[349652417,1737358239448,-500.0,0.00020047,2]
[349652418,1737358239458,-1653.98,0.00020047,2]
[349652419,1737358239468,-500.0,0.00020047,2]
[349652420,1737358239478,-2188.93,0.00020047,2]
[349652421,1737358239489,-500.0,0.00020047,2]
[349652422,1737358239499,-1655.06,0.00020047,2]
[349652423,1737358239516,-666.16,0.00020047,2]
[349652424,1737358239528,-500.0,0.00020047,2]
[349652425,1737358239684,-3129.34,0.00020047,2]
[349652426,1737358239694,-1733.0,0.00020047,2]
[349652427,1737358239704,-1812.09,0.00020047,2]
[349652428,1737358239713,-3247.89,0.00020047,2]
[349652429,1737358239722,-3759.08,0.00020047,2]
[349652430,1737358239732,-500.0,0.00020047,2]
[349652431,1737358239741,-500.0,0.00020047,2]
[349652432,1737358239752,-978.53,0.00020047,2]
[349652433,1737358239764,-500.0,0.00020047,2]
[349652434,1737358239774,-2232.69,0.00020047,2]
[349652435,1737358239783,-4573.56,0.00020047,2]
[349652436,1737358239793,-1490.55,0.00020047,2]
[349652437,1737358239802,-1877.94,0.00020047,2]
[349652438,1737358239811,-747.39,0.00020047,2]
[349652439,1737358239821,-2267.92,0.00020047,2]
[349652440,1737358239830,-835.22,0.00020082,2]
[349652441,1737358239839,-772.97,0.00020082,2]
[349652442,1737358239848,-772.97,0.00020082,2]
[349652443,1737358239858,-772.97,0.00020082,2]
[349652444,1737358239867,-179.57865483,0.00020085,2]
[349652445,1737358239876,-358.56358917,0.00020176,2]
[349652447,1737358239885,-11244.66,0.00020185,7]
[349652449,1737358239894,-11244.66,0.00020185,7]
[349652451,1737358239904,-1139.0,0.0002032,2]
[349652452,1737358239913,-997.21,0.0002032,2]
[349652453,1737358239923,-841.83,0.0002032,2]
[349652454,1737358239932,-1568.84,0.0002032,2]
[349652455,1737358239942,-686.33,0.0002032,2]
[349652456,1737358239952,-588.46,0.0002032,2]
[349652457,1737358239962,-1280.7,0.0002032,2]
[349652458,1737358239971,-2967.14,0.0002032,2]
[349652460,1737358239980,-1748.92,0.0002032,2]
[349652461,1737358239990,-742.97,0.0002032,2]
[349652462,1737358239999,-500.0,0.0002032,2]
[349652463,1737358240017,-647.97,0.0002032,2]
[349652465,1737358240026,-1188.05,0.0002032,2]
[349652466,1737358240037,-524.03,0.0002032,2]
[349652467,1737358240047,-842.54,0.00020321,2]
[349652468,1737358240058,-500.0,0.00020321,2]
[349652469,1737358240067,-577.26,0.00020321,2]
[349652470,1737358240076,-3973.63,0.00020321,2]
[349652471,1737358240086,-1011.74,0.00020321,2]
[349652472,1737358240095,-2791.81,0.00020321,2]
[349652473,1737358240104,-1475.060812,0.00020321,2]
[349652474,1737358240113,-585.35,0.00020321,2]
[349652475,1737358240123,-1408.83,0.00020321,2]
[349652476,1737358240135,-155.929331,0.00020321,2]
[349652477,1737358240144,-500.0,0.00020321,2]
[349652478,1737358240153,-1687.86,0.00020321,2]
[349652479,1737358240163,-1944.56,0.00020321,2]
[349652480,1737358240173,-500.0,0.00020321,2]
[349652481,1737358240182,-628.518133,0.00020321,2]
[349652482,1737358240192,-531.13,0.00020321,2]
[349652483,1737358240202,-1493.9,0.00020321,2]
[349652484,1737358240211,-1434.48,0.00020321,2]
[349652485,1737358240220,-500.0,0.00020321,2]
[349652486,1737358240229,-540.03,0.00020321,2]
[349652487,1737358240239,-1599.15,0.00020321,2]
[349652488,1737358240248,-749.61,0.00020321,2]
[349652489,1737358240267,-1124.91,0.00020321,2]
[349652490,1737358240277,-500.0,0.00020321,2]
[349652491,1737358240286,-1653.98,0.00020321,2]
[349652492,1737358240295,-540.03025523,0.00020321,2]
[349652493,1737358240304,-2188.93,0.00020321,2]
[349652494,1737358240313,-500.0,0.00020321,2]
[349652495,1737358240323,-1655.06,0.00020321,2]
[349652496,1737358240332,-666.16,0.00020321,2]
[349652497,1737358240341,-500.0,0.00020321,2]
[349652498,1737358240351,-3129.34,0.00020321,2]
[349652499,1737358240360,-1733.0,0.00020321,2]
[349652500,1737358240369,-1812.09,0.00020321,2]
[349652501,1737358240379,-3247.89,0.00020321,2]
[349652502,1737358240388,-3759.08,0.00020321,2]
[349652503,1737358240397,-500.0,0.00020321,2]
[349652504,1737358240406,-500.0,0.00020321,2]
[349652505,1737358240416,-978.53,0.00020321,2]
[349652506,1737358240425,-500.0,0.00020321,2]
[349652507,1737358240434,-2232.69,0.00020321,2]
[349652508,1737358240443,-4573.56,0.00020321,2]
[349652509,1737358240452,-1490.55,0.00020321,2]
[349652510,1737358240461,-1877.94,0.00020321,2]
[349652511,1737358240470,-747.39,0.00020321,2]
[349652512,1737358240479,-2267.92,0.00020321,2]
[349652513,1737358240488,-766.3,0.00020327,2]
[349652514,1737358240497,-250.0,0.00020353,2]
[349652515,1737358240518,-500.0,0.00020356,2]
[349652516,1737358240527,-358.56358917,0.00020369,2]
[349652517,1737358240536,-182.12,0.00020437,2]
[349652518,1737358240546,-11244.66,0.00020459,7]
[349652519,1737358240556,-11244.66,0.00020459,7]
[349652520,1737358240565,-186.31523426,0.00020494,2]
[349652521,1737358240575,-194.38479092,0.00020495,2]
[349652522,1737358240584,-239.27140601,0.00020495,3]
[349652523,1737358240593,-358.56358917,0.00020563,2]
[349652524,1737358240602,-1139.0,0.00020594,2]
[349652525,1737358240611,-997.21,0.00020594,2]
[349652526,1737358240620,-841.83,0.00020594,2]
[349652527,1737358240630,-1568.84,0.00020594,2]
[349652528,1737358240639,-686.33,0.00020594,2]
[349652529,1737358240649,-588.46,0.00020594,2]
[349652530,1737358240658,-1280.7,0.00020594,2]
[349652531,1737358240667,-2967.14,0.00020594,2]
[349652532,1737358240677,-1748.92,0.00020594,2]
[349652533,1737358240686,-742.97,0.00020594,2]
[349652534,1737358240695,-500.0,0.00020594,2]
[349652535,1737358240704,-647.97,0.00020594,2]
[349652536,1737358240714,-1188.05,0.00020594,2]
[349652537,1737358240725,-842.54,0.00020595,2]
[349652538,1737358240737,-500.0,0.00020595,2]
[349652539,1737358240746,-577.26,0.00020595,2]
[349652540,1737358240763,-3973.63,0.00020595,2]
[349652542,1737358240772,-1011.74,0.00020595,2]
[349652544,1737358240781,-2791.81,0.00020595,2]
[349652546,1737358240790,-1475.060812,0.00020595,2]
[349652548,1737358240799,-585.35,0.00020595,2]
[349652550,1737358240808,-1408.83,0.00020595,2]
[349652552,1737358240817,-500.0,0.00020595,2]
[349652553,1737358240826,-1687.86,0.00020595,2]
[349652554,1737358240836,-1944.56,0.00020595,2]
[349652555,1737358240845,-500.0,0.00020595,2]
[349652556,1737358240854,-628.518133,0.00020595,2]
[349652557,1737358240863,-531.13,0.00020595,2]
[349652558,1737358240872,-1493.9,0.00020595,2]
[349652559,1737358240881,-1434.48,0.00020595,2]
[349652560,1737358240891,-500.0,0.00020595,2]
[349652561,1737358240899,-540.03,0.00020595,2]
[349652562,1737358240909,-1599.15,0.00020595,2]
[349652563,1737358240918,-749.61,0.00020595,2]
[349652564,1737358240927,-1124.91,0.00020595,2]
[349652565,1737358240936,-500.0,0.00020595,2]
[349652566,1737358240945,-1653.98,0.00020595,2]
[349652567,1737358240955,-2188.93,0.00020595,2]
[349652568,1737358240964,-500.0,0.00020595,2]
[349652569,1737358240973,-1655.06,0.00020595,2]
[349652570,1737358240982,-666.16,0.00020595,2]
[349652571,1737358240991,-500.0,0.00020595,2]
[349652572,1737358241000,-3129.34,0.00020595,2]
[349652573,1737358241013,-1733.0,0.00020595,2]
[349652574,1737358241022,-1812.09,0.00020595,2]
[349652575,1737358241031,-3247.89,0.00020595,2]
[349652576,1737358241041,-3759.08,0.00020595,2]
[349652577,1737358241053,-500.0,0.00020595,2]
[349652578,1737358241061,-500.0,0.00020595,2]
[349652579,1737358241070,-978.53,0.00020595,2]
[349652580,1737358241080,-500.0,0.00020595,2]
[349652581,1737358241090,-2232.69,0.00020595,2]
[349652582,1737358241099,-4573.56,0.00020595,2]
[349652583,1737358241108,-1490.55,0.00020595,2]
[349652584,1737358241116,-1877.94,0.00020595,2]
[349652585,1737358241126,-747.39,0.00020595,2]
[349652586,1737358241135,-2267.92,0.00020595,2]
[349652587,1737358241144,-1917.0,0.000206,2]
[349652588,1737358241153,-519.84757797,0.00020656,2]
[349652589,1737358241162,-150.0,0.000207,4]
[349652590,1737358241171,-150.0,0.000207,4]
[349652591,1737358241180,-150.0,0.000207,4]
[349652592,1737358241189,-20144.31236029,0.000207,2]
[349652593,1737358241198,-200.0,0.00020711,2]
[349652594,1737358241207,-11244.66,0.00020733,7]
[349652595,1737358241216,-11244.66,0.00020733,7]
[349652596,1737358241225,-358.56358917,0.00020757,2]
[349652597,1737358241234,-316.820499,0.0002076,2]
[349652598,1737358241243,-815.13,0.00020772,2]
[349652599,1737358241256,-31235.702,0.00020773,2]
[349652600,1737358241265,-2840.35751324,0.00020798,2]
[349652601,1737358241274,-3589.61393162,0.00020802,2]
[349652602,1737358241283,-13728.14282969,0.00020804,2]
[349652603,1737358241292,-1669.42933117,0.00020805,2]
[349652604,1737358241303,-2840.35751324,0.00020805,2]
[349652605,1737358241312,-3954.29039932,0.00020813,2]
[349652606,1737358241321,-1669.42933117,0.00020814,2]
[349652607,1737358241330,-150.0,0.00020815,4]
[349652608,1737358241340,-8389.98618629,0.00020816,2]
[349652609,1737358241349,-16317.20396372,0.00020827,2]
[349652610,1737358241359,-3589.61393162,0.00020828,2]
[349652611,1737358241368,-2840.35751324,0.0002083,2]
[349652612,1737358241378,-3589.61393162,0.00020835,2]
[349652613,1737358241387,-3954.29039932,0.00020842,2]
[349652614,1737358241396,-16317.20396372,0.00020843,2]
[349652615,1737358241406,-209077.63618654,0.00020848,2]
[349652616,1737358241414,-16317.20396372,0.00020852,2]
[349652617,1737358241423,-1669.42933117,0.00020852,2]
[349652618,1737358241432,-8389.98618629,0.00020853,2]
[349652619,1737358241441,-13728.14282969,0.00020861,2]
[349652620,1737358241451,-8389.98618629,0.00020862,2]
[349652621,1737358241460,-209077.63618654,0.00020864,2]
[349652622,1737358241469,-1139.0,0.00020868,2]
[349652623,1737358241478,-997.21,0.00020868,2]
[349652624,1737358241487,-841.83,0.00020868,2]
[349652625,1737358241495,-1568.84,0.00020868,2]
[349652626,1737358241510,-686.33,0.00020868,2]
[349652627,1737358241519,-588.46,0.00020868,2]
[349652628,1737358241528,-1280.7,0.00020868,2]
[349652629,1737358241538,-2967.14,0.00020868,2]
[349652630,1737358241547,-1748.92,0.00020868,2]
[349652631,1737358241556,-742.97,0.00020868,2]
[349652632,1737358241566,-500.0,0.00020868,2]
[349652633,1737358241575,-647.97,0.00020868,2]
[349652634,1737358241584,-1188.05,0.00020868,2]
[349652635,1737358241593,-842.54,0.00020869,2]
[349652636,1737358241602,-500.0,0.00020869,2]
[349652637,1737358241612,-577.26,0.00020869,2]
[349652638,1737358241621,-3973.63,0.00020869,2]
[349652639,1737358241630,-1011.74,0.00020869,2]
[349652640,1737358241640,-2791.81,0.00020869,2]
[349652641,1737358241648,-1475.060812,0.00020869,2]
[349652642,1737358241658,-585.35,0.00020869,2]
[349652643,1737358241666,-1408.83,0.00020869,2]
[349652644,1737358241675,-500.0,0.00020869,2]
[349652645,1737358241684,-1687.86,0.00020869,2]
[349652646,1737358241693,-1944.56,0.00020869,2]
[349652647,1737358241702,-500.0,0.00020869,2]
[349652648,1737358241711,-628.518133,0.00020869,2]
[349652649,1737358241722,-531.13,0.00020869,2]
[349652650,1737358241732,-1493.9,0.00020869,2]
[349652651,1737358241742,-1434.48,0.00020869,2]
[349652652,1737358241756,-298.31,0.00020869,2]
[349652653,1737358241765,-540.03,0.00020869,2]